bitfinex-derivatives/quotes_ETHF0:USTF0_20250410
["timestamp","ask_amount","ask_price","bid_price","bid_amount"]
[1744306400683,1.33202,1502.5,1502.4,0.01000901]
[1744306401084,0.01000901,1502.7,1502.4,1.34204901]
[1744306401385,1.33202,1502.5,1502.4,0.01000901]
[1744306401889,6.33202,1502.5,1502.4,0.01000901]
[1744306402287,1.33202,1502.5,1502.4,0.01000901]
[1744306402483,1.33202,1502.5,1502.4,1.34210901]
[1744306402680,1.34186901,1502.7,1502.6,1.33193]
[1744306402885,1.34184901,1502.7,1502.6,1.33193]
[1744306403579,0.01000901,1502.7,1502.6,1.33193]
[1744306403784,6.53614,1503.3,1503.0,1.33155]
[1744306403984,6.53614,1503.3,1502.7,3.3294]
[1744306403985,1.33175,1502.8,1502.7,6.36416]
[1744306404190,1.33171,1502.9,1502.8,1.33169]
[1744306404391,1.33175,1502.8,1502.7,9.1327]
[1744306404588,1.33193,1502.6,1502.5,1.33194]
[1744306404788,1.33202,1502.5,1502.4,0.01000901]
[1744306404983,1.33202,1502.5,1502.4,1.34210901]
[1744306405183,1.33842938,1502.7,1502.6,1.33193]
[1744306405387,1.33202,1502.5,1502.4,0.01000901]
[1744306405989,9.53982,1502.5,1502.4,9.01e-06]
[1744306406182,19.73042,1502.5,1502.4,9.01e-06]
[1744306406387,28.11222,1502.5,1502.4,9.01e-06]
[1744306407592,19.90442,1502.5,1502.4,9.01e-06]
[1744306407997,28.11222,1502.5,1502.4,9.01e-06]
[1744306408294,19.90442,1502.5,1502.4,9.01e-06]
[1744306408593,14.70972,1502.5,1502.4,9.01e-06]
[1744306408791,14.70972,1502.5,1502.4,8.62370901]
[1744306408996,9.71382,1502.5,1502.4,9.95580901]
[1744306409180,1.33202,1502.5,1502.4,8.62370901]
[1744306409585,17.95942,1502.5,1502.4,9.01e-06]
[1744306409786,1.33202,1502.5,1502.4,9.01e-06]
[1744306409997,3.21434938,1502.7,1502.4,5.00000901]
[1744306410186,0.00654938,1502.7,1502.6,1.33193]
[1744306410586,0.00654938,1502.7,1502.6,6.33193]
[1744306410891,13.03801029,1503.1,1503.0,1.33157]
[1744306411493,11.30795029,1503.4,1503.3,1.33131]
[1744306411693,12.63923029,1503.4,1503.2,4.53915]
[1744306411892,12.63917029,1503.4,1503.3,8.4179]
[1744306412294,1.33131,1503.3,1503.2,0.01000901]
[1744306412596,9.55951,1503.3,1503.2,0.01000901]
[1744306412802,1.33131,1503.3,1503.2,0.01000901]
[1744306413298,9.55951,1503.3,1503.2,0.01000901]
[1744306413688,9.55951,1503.3,1503.2,1.34139901]
[1744306413891,9.55951,1503.3,1503.2,0.01000901]
[1744306414198,12.63921029,1503.4,1503.2,0.01000901]
[1744306414396,11.30795029,1503.4,1503.3,1.33131]
[1744306414601,11.30795029,1503.4,1503.3,9.80021]
[1744306415101,12.63917029,1503.4,1503.3,9.80021]
[1744306415300,11.30795029,1503.4,1503.3,9.80021]
[1744306415494,11.30795029,1503.4,1503.3,8.4689]
[1744306415692,0.01,1503.5,1503.4,1.33122]
[1744306415997,1.34113,1503.5,1503.3,8.4689]
[1744306416298,0.01,1503.5,1503.4,1.33122]
[1744306416492,1.34113,1503.5,1503.4,1.33122]
[1744306416894,0.01,1503.5,1503.4,4.53902]
[1744306417096,3.2078,1504.0,1503.5,3.32774]
[1744306417296,9.7039,1503.9,1503.8,1.33086]
[1744306417492,1.33078,1503.9,1503.8,3.2078]
[1744306417694,3.32688,1504.0,1503.6,9.79987]
[1744306417889,3.2078,1504.0,1503.7,1.33087]
[1744306418094,1.33084,1503.9,1503.8,8.8773]
[1744306421507,3.32695,1503.9,1503.5,13.1884]
[1744306421801,1.33063,1504.1,1504.0,1.33064]
[1744306422001,11.3875,1504.4,1504.0,3.32668]
[1744306422302,1.33033,1504.5,1504.1,14.92541]
[1744306422500,1.33039,1504.4,1504.2,13.4531]
[1744306422699,1.33042,1504.3,1504.2,13.4531]
[1744306422907,6.53324,1504.6,1504.2,13.4531]
[1744306423108,9.0207,1504.5,1504.2,13.4531]
[1744306423307,1.33042,1504.3,1504.2,13.4531]
[1744306423600,1.3306,1504.1,1504.0,0.00997539]
[1744306423902,1.3306,1504.1,1504.0,9.87966539]
[1744306424105,7.0635057,1504.8,1504.1,3.3265]
[1744306424302,1.33001,1504.8,1504.7,1.33007]
[1744306424603,6.53246,1505.0,1504.7,1.33002]
[1744306424604,12.1421,1505.0,1504.7,1.33002]
[1744306424906,1.32969,1505.2,1504.8,11.7468]
[1744306425100,3.2078,1505.4,1504.9,11.7468]
[1744306425305,3.32407,1505.2,1504.9,11.7468]
[1744306425502,1.32976,1505.1,1505.0,0.00997539]
[1744306425692,8.9343,1505.2,1505.0,8.54897539]
[1744306425900,3.2078,1505.4,1505.1,1.32971]
[1744306426196,3.2078,1505.4,1505.0,8.54897539]
[1744306426197,1.32958,1505.3,1505.2,8.539]
[1744306426600,1.32971,1505.1,1505.0,0.00997539]
[1744306427195,15.46591,1505.4,1505.1,1.32966]
[1744306427196,3.2078,1505.4,1505.1,1.32966]
[1744306427401,1.32961,1505.3,1505.2,8.335]
[1744306428003,10.40331,1505.3,1505.2,8.335]
[1744306428206,1.32971,1505.1,1505.0,0.00997539]
[1744306429105,10.40341,1505.1,1505.0,0.00997539]
[1744306429706,1.33013,1504.7,1504.5,4.53797]
[1744306429909,3.2078,1505.0,1504.6,8.7198]
[1744306430205,1.33007,1504.7,1504.6,8.7198]
[1744306430605,8.6308,1504.9,1504.6,10.04992]
[1744306430803,9.96077,1504.9,1504.7,1.33002]
[1744306431006,1.32997,1504.9,1504.8,8.7198]
[1744306431312,1.32997,1504.9,1504.8,10.04978]
[1744306431507,13.6942,1505.1,1504.9,1.32989]
[1744306431710,0.00986334,1505.2,1505.1,1.32971]
[1744306432105,1.33949334,1505.2,1505.1,1.32971]
[1744306432407,0.00986334,1505.2,1505.1,1.32971]
[1744306433000,0.00986334,1505.2,1505.0,22.0348]
[1744306433206,1.32971,1505.1,1505.0,8.7198]
[1744306433506,9.74121,1505.1,1505.0,8.7198]
[1744306433907,1.32998,1504.8,1504.7,3.2078]
[1744306434108,1.33007,1504.7,1504.6,0.00997539]
[1744306434310,12.94937,1504.7,1504.6,0.00997539]
[1744306434808,17.94937,1504.7,1504.6,5.39e-06]
[1744306435010,1.33056,1504.2,1504.0,1.8039]
[1744306435206,1.33048,1504.3,1504.0,0.4733]
[1744306435400,6.53342,1504.5,1504.0,0.4733]
[1744306435401,1.3306,1504.1,1504.0,1.80392]
[1744306435611,1.33048,1504.3,1504.2,1.33051]
[1744306435913,1.33042,1504.3,1504.2,1.33051]
[1744306436313,1.33051,1504.2,1504.1,8.99547539]
[1744306436505,1.33051,1504.2,1504.1,1.34057539]
[1744306436812,1.33051,1504.2,1504.1,10.32601539]
[1744306437012,1.33051,1504.2,1504.1,0.00997539]
[1744306437608,10.40631,1504.2,1504.1,0.00997539]
[1744306437910,1.33049,1504.3,1504.1,1.34057539]
[1744306438209,0.00997539,1504.4,1504.2,8.9855]
[1744306438406,0.00997539,1504.4,1504.3,4.53822]
[1744306438612,0.00997539,1504.4,1504.2,8.9855]
[1744306438814,1.33042,1504.3,1504.2,10.31601]
[1744306439207,0.00997539,1504.4,1504.2,13.9855]
[1744306439406,0.00997539,1504.4,1504.2,10.31593]
[1744306439709,1.33042,1504.3,1504.2,10.31597]
[1744306439911,1.33051,1504.2,1504.1,0.00997539]
[1744306440115,4.53831,1504.2,1504.1,0.00997539]
[1744306440410,4.53831,1504.2,1504.0,0.4733]
[1744306440411,1.3306,1504.1,1504.0,1.3e-07]
[1744306440605,8.6039,1504.1,1504.0,1.3e-07]
[1744306440805,1.33057,1504.2,1504.0,1.3e-07]
[1744306441012,1.33053,1504.2,1504.0,7.76080013]
[1744306441212,1.33057,1504.2,1504.1,1.3306]
[1744306441410,0.00997539,1504.4,1504.1,3.2078]
[1744306441715,0.00997539,1504.4,1504.2,7.7608]
[1744306441905,0.00997539,1504.4,1504.3,4.53822]
[1744306442310,0.00997539,1504.4,1504.3,1.33042]
[1744306442510,0.00997539,1504.4,1504.3,6.33042]
[1744306443112,0.00997539,1504.4,1504.3,1.33042]
[1744306443419,1.33042,1504.3,1504.2,14.14807]
[1744306443714,1.33042,1504.3,1504.2,7.7608]
[1744306443915,8.87572,1504.3,1504.2,7.7608]
[1744306444306,1.33042,1504.3,1504.2,7.7608]
[1744306444513,1.34035539,1504.4,1504.3,1.33042]
[1744306444814,0.00997539,1504.4,1504.3,6.33042]
[1744306445020,1.32998,1504.8,1504.6,1.33011]
[1744306445214,4.53775,1504.9,1504.8,1.32998]
[1744306445410,1.32998,1504.8,1504.7,8.94314]
[1744306445611,1.32998,1504.8,1504.7,8.94312]
[1744306445812,1.32998,1504.8,1504.7,7.6131]
[1744306446120,1.33024,1504.5,1504.4,4.53807]
[1744306446418,3.32584,1504.4,1503.8,6.53492]
[1744306446621,1.3305,1504.3,1504.2,8.94359]
[1744306446816,1.3305,1504.3,1504.2,7.6131]
[1744306447015,6.53344,1504.5,1504.2,7.6131]
[1744306447322,1.3306,1504.1,1504.0,0.00997552]
[1744306448317,9.5384,1504.1,1504.0,0.00997552]
[1744306448622,1.33104,1503.6,1503.5,10.33334735]
[1744306448817,10.5382,1504.0,1503.5,17.98594735]
[1744306449112,1.33097,1503.7,1503.5,17.98594735]
[1744306449306,1.33097,1503.7,1503.6,1.33104]
[1744306449513,10.5382,1504.0,1503.5,21.31376735]
[1744306449707,3.21777539,1503.8,1503.5,17.99592274]
[1744306449918,1.33104,1503.6,1503.5,17.99592274]
[1744306450118,1.33104,1503.6,1503.5,10.34332274]
[1744306450820,1.33104,1503.6,1503.5,17.99592274]
[1744306451120,1.33104,1503.6,1503.5,19.32705274]
[1744306451318,15.4014,1503.7,1503.5,19.32699274]
[1744306451614,15.4014,1503.7,1503.5,8.99365539]
[1744306451615,1.33104,1503.6,1503.5,8.99365539]
[1744306451816,3.21777539,1503.8,1503.5,7.66257539]
[1744306452017,4.53884,1503.6,1503.5,0.00997539]
[1744306452218,4.53884,1503.6,1503.5,5.39e-06]
[1744306452424,27.84054,1503.6,1503.5,5.39e-06]
[1744306452718,32.84054,1503.6,1503.5,5.39e-06]
[1744306453111,3.20779461,1503.4,1502.6,9.8383]
[1744306453417,1.33193,1502.6,1502.5,10.33334735]
[1744306453917,1.33189,1502.7,1502.5,19.12533735]
[1744306454126,3.2078,1503.1,1502.5,22.79334735]
[1744306454314,0.00997539,1502.8,1502.6,6.53761]
[1744306454516,0.00997539,1502.8,1502.7,8.82024]
[1744306455122,0.00997539,1502.8,1502.7,13.82024]
[1744306457018,1.34172539,1502.8,1502.7,7.4884]
[1744306457218,0.00997539,1502.8,1502.7,8.82024]
[1744306457521,1.34172539,1502.8,1502.7,7.4884]
[1744306457919,8.33950539,1502.8,1502.4,3.21777539]
[1744306458123,1.33202,1502.5,1502.4,3.21777539]
[1744306459229,4.53982,1502.5,1502.4,0.00997539]
[1744306459430,11.91472,1502.5,1502.4,0.00997539]
[1744306460222,3.3304,1502.4,1502.0,10.33334735]
[1744306460529,4.54017,1502.1,1502.0,10.33334735]
[1744306460729,12.59117,1502.1,1502.0,8.79753735]
[1744306461033,17.59117,1502.1,1502.0,8.79753735]
[1744306461926,17.59117,1502.1,1502.0,7.35663735]
[1744306462118,17.59117,1502.1,1502.0,5.98289735]
[1744306462321,1.33246,1502.0,1501.9,0.00997539]
[1744306462522,9.27426,1502.0,1501.9,0.00997539]
[1744306462733,14.27426,1502.0,1501.9,5.39e-06]
[1744306463629,20.12626,1502.0,1501.9,5.39e-06]
[1744306464324,1.33308,1501.3,1501.2,7.3107]
[1744306464525,1.33317,1501.2,1501.1,15.59600491]
[1744306464724,8.74207,1501.2,1501.1,15.59600491]
[1744306465028,1.33317,1501.2,1501.1,16.92926491]
[1744306465229,1.33317,1501.2,1501.1,22.90670491]
[1744306465422,4.54094,1501.3,1501.1,24.23996491]
[1744306465728,4.55085539,1501.3,1501.2,7.3107]
[1744306466125,1.33317,1501.2,1501.1,15.59600491]
[1744306466433,9.05207,1501.2,1501.1,15.59600491]
[1744306466728,14.05207,1501.2,1501.1,14.20203491]
[1744306466930,22.10807,1501.2,1501.1,14.20203491]
[1744306467126,1.33326,1501.1,1501.0,0.00676233]
[1744306467325,12.25996,1501.1,1501.0,0.00676233]
[1744306467527,4.54106,1501.1,1501.0,0.00676233]
[1744306468125,12.25996,1501.1,1501.0,0.00676233]
[1744306468727,17.25996,1501.1,1501.0,2.33e-06]
[1744306469033,23.11196,1501.1,1501.0,2.33e-06]
[1744306469930,124.68196,1501.1,1501.0,2.33e-06]
[1744306470434,3.33397,1500.8,1500.2,5.1412]
[1744306470630,1.33417,1500.1,1499.9,6.28317]
[1744306470832,1.33417,1500.1,1500.0,7.0917]
[1744306472437,1.33415,1500.1,1500.0,12.0917]
[1744306472837,1.33415,1500.1,1500.0,7.0917]
[1744306473233,4.54195,1500.1,1500.0,7.0917]
[1744306473437,3.2078,1500.1,1500.0,8.42594]
[1744306473735,4.54195,1500.1,1500.0,7.0917]
[1744306473938,1.33441,1499.8,1499.7,5.1412]
[1744306474343,7.1048,1500.0,1499.6,5.2422]
[1744306474536,1.33417,1500.1,1499.9,1.33432]
[1744306474741,1.34409539,1500.2,1500.0,1.33424]
[1744306474940,1.33432,1499.9,1499.8,4.98]
[1744306475136,1.33431,1500.0,1499.8,6.3144]
[1744306475334,1.34406539,1500.2,1500.0,1.3342]
[1744306475639,0.00997539,1500.2,1500.1,8.10095]
[1744306476032,0.00997539,1500.2,1500.1,13.10095]
[1744306476542,0.00997539,1500.2,1500.1,6.7668]
[1744306476543,1.34403539,1500.2,1500.1,6.7668]
[1744306478132,0.00997539,1500.2,1500.1,13.10095]
[1744306478333,1.34403539,1500.2,1500.1,11.7668]
[1744306478641,1.34403539,1500.2,1500.1,6.7668]
[1744306479233,1.33432,1499.9,1499.8,4.98]
[1744306479435,4.54212,1499.9,1499.8,4.98]
[1744306479634,1.33432,1499.9,1499.8,9.98]
[1744306479834,1.33431,1500.0,1499.9,1.33432]
[1744306480034,1.33429,1500.0,1499.8,6.31433]
[1744306480240,3.2078,1500.1,1499.8,6.31434]
[1744306480442,4.542,1500.1,1499.9,8.2577]
[1744306480640,3.2078,1500.1,1499.9,8.25767]
[1744306480837,1.33424,1500.0,1499.9,8.25767]
[1744306481135,4.54202,1500.1,1500.0,1.33424]
[1744306481443,1.33424,1500.0,1499.9,8.25766]
[1744306481847,1.33424,1500.0,1499.9,6.9234]
[1744306482237,1.33422,1500.1,1499.9,6.9234]
[1744306482441,1.33422,1500.1,1500.0,1.33419]
[1744306482843,1.33424,1500.0,1499.9,8.25768]
[1744306483040,1.33422,1500.1,1500.0,1.33422]
[1744306483348,1.33424,1500.0,1499.9,8.2577]
[1744306483646,1.33424,1500.0,1499.9,6.9234]
[1744306483943,1.33424,1500.0,1499.9,8.25772]
[1744306484245,0.00997539,1500.2,1500.0,1.33421]
[1744306484433,1.34403539,1500.2,1500.1,7.0818]
[1744306484836,1.34403539,1500.2,1500.1,8.41595]
[1744306485241,0.00997539,1500.2,1500.1,13.41595]
[1744306485444,0.00997539,1500.2,1500.1,16.62375]
[1744306486144,3.33426,1500.6,1500.1,28.3092]
[1744306486345,1.33378,1500.6,1500.5,1.33376]
[1744306486540,1.33402,1500.3,1500.2,1.33396]
[1744306486741,1.33386,1500.5,1500.4,1.33383]
[1744306487041,1.33384,1500.5,1500.4,1.33381]
[1744306487951,1.33388,1500.4,1500.3,4.94277539]
[1744306488449,1.33388,1500.4,1500.3,0.00997539]
[1744306489352,1.33388,1500.4,1500.3,1.34394539]
[1744306489549,1.33388,1500.4,1500.3,0.00997539]
[1744306489742,1.33388,1500.4,1500.3,1.34394539]
[1744306490648,1.33388,1500.4,1500.3,0.00997539]
[1744306491041,1.33388,1500.4,1500.3,1.34394539]
[1744306491541,1.33387,1500.5,1500.4,1.33384]
[1744306492143,1.33388,1500.4,1500.3,0.00997539]
[1744306492536,13.32028,1500.4,1500.3,0.00997539]
[1744306492844,8.32028,1500.4,1500.3,0.00997539]
[1744306493151,1.33388,1500.4,1500.3,0.00997539]
[1744306493853,4.54168,1500.4,1500.3,0.00997539]
[1744306494146,12.58268,1500.4,1500.3,0.00997539]
[1744306494850,19.60018,1500.4,1500.3,0.00997539]
[1744306495348,11.55918,1500.4,1500.3,0.00997539]
[1744306495551,1.33388,1500.4,1500.3,0.00997539]
[1744306496448,4.54168,1500.4,1500.3,0.00997539]
[1744306496953,1.33388,1500.4,1500.3,0.00997539]
[1744306497453,4.54168,1500.4,1500.3,0.00997539]
[1744306497651,11.49578,1500.4,1500.3,0.00997539]
[1744306499246,8.28798,1500.4,1500.3,0.00997539]
[1744306499444,11.49578,1500.4,1500.3,0.00997539]
[1744306499755,16.49578,1500.4,1500.3,0.00997539]
[1744306500152,11.49578,1500.4,1500.3,0.00997539]
[1744306500364,16.49578,1500.4,1500.3,5.39e-06]
[1744306500548,128.93148,1500.4,1500.3,5.39e-06]
[1744306500747,1.33459,1499.6,1499.5,5.0265]
[1744306501358,3.2078,1499.8,1499.3,6.54494]
[1744306501556,1.33453,1499.7,1499.6,1.33454]
[1744306501756,1.33463,1499.6,1499.5,1.33464]
[1744306501951,1.3347,1499.5,1499.4,1.33471]
[1744306502154,3.2078,1499.6,1499.3,5.1368]
[1744306502452,0.00997539,1499.8,1499.7,1.3345]
[1744306502953,1.3345,1499.7,1499.6,6.5094]
[1744306503259,0.00997539,1499.8,1499.7,1.3345]
[1744306503446,0.00997539,1499.8,1499.7,4.5423]
[1744306503650,1.33399,1500.3,1500.2,1.33398]
[1744306504051,1.33395,1500.4,1500.3,1.33397]
[1744306504255,1.33398,1500.3,1500.2,1.33399]
[1744306504449,3.2078,1500.5,1500.1,9.84476]
[1744306504749,6.54181,1500.8,1500.5,1.33378]
[1744306504951,3.2078,1500.7,1500.3,5.992]
[1744306505161,1.33397,1500.3,1500.2,6.5094]
[1744306505355,3.2078,1500.5,1500.3,1.33397]
[1744306505655,4.54167,1500.5,1500.4,6.5094]
[1744306505857,1.33406,1500.2,1500.1,0.00997539]
[1744306506050,4.54186,1500.2,1500.1,0.00997539]
[1744306506353,9.54186,1500.2,1500.1,5.39e-06]
[1744306506557,15.39386,1500.2,1500.1,5.39e-06]
[1744306506752,123.96436,1500.2,1500.1,5.39e-06]
[1744306509452,118.96436,1500.2,1500.1,5.39e-06]
[1744306509652,1.33406,1500.2,1500.1,5.39e-06]
[1744306509955,1.33406,1500.2,1500.1,12.69529539]
[1744306510261,1.33406,1500.2,1500.1,12.69535539]
[1744306510560,4.54174,1500.4,1500.1,11.36120539]
[1744306510757,1.33397,1500.3,1500.2,6.3612]
[1744306510958,4.54177,1500.3,1500.2,6.3612]
[1744306511549,11.20227,1500.3,1500.2,6.3612]
[1744306512362,1.33406,1500.2,1500.1,5.39e-06]
[1744306512555,7.68916,1500.2,1500.1,5.39e-06]
[1744306512759,12.68916,1500.2,1500.1,5.39e-06]
[1744306513858,7.68916,1500.2,1500.1,5.39e-06]
[1744306515663,1.33406,1500.2,1500.1,5.39e-06]
[1744306515853,1.33406,1500.2,1500.1,6.33415539]
[1744306516053,1.33406,1500.2,1500.1,5.00000539]
[1744306516257,9.35006,1500.2,1500.1,5.39e-06]
[1744306516458,15.85696,1500.2,1500.1,5.39e-06]
[1744306518165,1.33406,1500.2,1500.1,5.39e-06]
[1744306518565,1.33406,1500.2,1500.1,6.97580539]
[1744306518858,7.86906,1500.2,1500.1,6.97580539]
[1744306519667,1.33406,1500.2,1500.1,11.97580539]
[1744306519966,1.33402,1500.3,1500.1,13.30995539]
[1744306520165,1.33402,1500.3,1500.2,13.07466]
[1744306520361,1.33397,1500.3,1500.2,21.7539]
[1744306520562,1.33393,1500.4,1500.2,21.7539]
[1744306520760,10.86231332,1500.7,1500.3,3.2078]
[1744306520963,1.33379,1500.5,1500.4,6.8715]
[1744306521262,11.53977776,1500.6,1500.4,6.8715]
[1744306521465,1.33379,1500.5,1500.4,6.8715]
[1744306521762,10.20601776,1500.6,1500.5,1.33379]
[1744306522165,10.20601776,1500.6,1500.5,13.20529]
[1744306522567,10.20601776,1500.6,1500.5,6.8715]
[1744306522568,11.53971776,1500.6,1500.5,6.8715]
[1744306523163,18.23351776,1500.6,1500.5,6.8715]
[1744306524064,1.33397,1500.3,1500.2,9.7781]
[1744306524260,1.33397,1500.3,1500.2,11.11216]
[1744306524460,1.33397,1500.3,1500.2,16.11216]
[1744306524668,3.2078,1500.5,1500.2,14.7781]
[1744306524865,10.20601776,1500.6,1500.5,1.33379]
[1744306525074,9.11672175,1500.7,1500.6,1.3337]
[1744306525266,7.78307175,1500.7,1500.6,1.3337]
[1744306525570,0.00997539,1500.8,1500.7,1.33361]
[1744306525765,4.88436848,1501.0,1500.9,1.33344]
[1744306525957,1.33352,1500.9,1500.8,4.54127]
[1744306526161,1.33344,1500.9,1500.8,6.33344]
[1744306526362,1.33352,1500.8,1500.7,9.8575]
[1744306526769,3.2078,1500.9,1500.3,5.992]
[1744306526770,3.33404,1500.7,1500.3,5.992]
[1744306527072,1.33388,1500.4,1500.3,1.33397]
[1744306527273,1.33399,1500.3,1500.2,1.33398]
[1744306527568,6.5391,1500.5,1500.1,5.39e-06]
[1744306527762,1.33386,1500.5,1500.4,1.33385]
[1744306528072,1.33403,1500.3,1500.2,1.33402]
[1744306528370,1.33393,1500.4,1500.3,1.33392]
[1744306528566,3.33449,1500.5,1500.2,15.65281482]
[1744306528867,1.33388,1500.4,1500.3,6.33]
[1744306529270,1.33397,1500.3,1500.2,15.65281482]
[1744306529467,4.54177,1500.3,1500.2,15.65281482]
[1744306530266,1.33393,1500.4,1500.3,1.33397]
[1744306530568,1.33385,1500.5,1500.2,27.10231482]
[1744306530773,1.33388,1500.4,1500.3,1.33391]
[1744306530972,1.33386,1500.5,1500.4,1.33387]
[1744306531271,1.33386,1500.5,1500.2,25.43745482]
[1744306531272,6.55141539,1500.9,1500.3,6.54267]
[1744306531469,1.33369,1500.7,1500.6,1.33369]
[1744306531673,1.33377,1500.6,1500.5,1.33377]
[1744306531871,1.33388,1500.4,1500.3,4.5417]
[1744306532067,3.33426,1500.6,1500.1,19.64216539]
[1744306532277,1.33386,1500.5,1500.4,1.33385]
[1744306532975,1.33391,1500.4,1500.3,1.3339]
[1744306533177,1.33388,1500.5,1500.4,1.33385]
[1744306533472,1.33378,1500.6,1500.5,1.33379]
[1744306533668,1.33382,1500.5,1500.4,1.33381]
[1744306534078,1.33388,1500.4,1500.3,1.33391]
[1744306534275,1.33386,1500.5,1500.4,1.33385]
[1744306534476,1.33378,1500.6,1500.5,1.33379]
[1744306534677,3.3339,1500.8,1500.3,3.33475]
[1744306534878,3.3339,1500.8,1500.2,3.33511]
[1744306534879,1.33382,1500.5,1500.4,1.33381]
[1744306535977,1.33374,1500.6,1500.5,1.33372]
[1744306536469,1.33385,1500.5,1500.4,1.33382]
[1744306536877,1.33374,1500.6,1500.5,1.33371]
[1744306537779,1.33361,1500.8,1500.7,1.33358]
[1744306537979,1.34349539,1500.9,1500.8,1.33352]
[1744306538180,0.00997539,1500.9,1500.8,1.33352]
[1744306538381,0.00997539,1500.9,1500.8,6.33352]
[1744306539683,0.00997539,1500.9,1500.8,1.33352]
[1744306539875,0.00997539,1500.9,1500.8,6.33352]
[1744306540381,3.2078,1501.7,1501.2,3.33292]
[1744306540683,15.64561235,1502.0,1501.8,1.33257]
[1744306540873,1.3328,1501.7,1501.5,1.33285]
[1744306541074,1.33281,1501.6,1501.5,4.8289]
[1744306541282,1.33299,1501.4,1501.3,5.1417]
[1744306541481,1.33317,1501.2,1501.1,8.0367]
[1744306541781,1.33317,1501.2,1501.1,4.8289]
[1744306541976,9.5261,1501.3,1501.1,1.33322]
[1744306542177,10.85926,1501.3,1501.2,1.33317]
[1744306542377,10.85926,1501.3,1501.1,1.33319]
[1744306542682,4.54097,1501.2,1501.0,15.66279021]
[1744306542883,1.33326,1501.1,1501.0,15.66279021]
[1744306543286,12.96976,1501.1,1501.0,15.66279021]
[1744306543673,11.6365,1501.1,1500.9,20.43179844]
[1744306543879,4.54115,1501.0,1500.9,18.99247844]
[1744306544076,17.02965,1501.0,1500.9,17.08603844]
[1744306544277,22.02965,1501.0,1500.9,13.54664844]
[1744306544478,1.33352,1500.8,1500.7,25.4351774]
[1744306544778,12.52532,1500.8,1500.7,23.8388074]
[1744306545078,18.07056942,1500.8,1500.7,22.4756574]
[1744306545479,24.70606942,1500.8,1500.7,22.4756574]
[1744306545881,24.16082,1500.8,1500.7,22.4756574]
[1744306546286,24.16082,1500.8,1500.6,0.00997539]
[1744306546287,1.33361,1500.7,1500.6,0.00997539]
[1744306546481,7.96911,1500.7,1500.6,0.00997539]
[1744306546876,7.96911,1500.7,1500.6,6.80307539]
[1744306547082,6.6355,1500.7,1500.6,8.13677539]
[1744306547489,0.00997539,1500.9,1500.6,6.80307539]
[1744306547681,7.97898539,1500.9,1500.7,6.58729]
[1744306547879,7.97897539,1500.9,1500.7,6.58729]
[1744306548084,7.97897539,1500.9,1500.8,1.33352]
[1744306548389,0.00997539,1500.9,1500.8,1.33352]
[1744306548585,0.00997539,1500.9,1500.8,7.66002]
[1744306548792,0.00997539,1500.9,1500.8,12.66002]
[1744306548992,1.34341539,1500.9,1500.8,6.3265]
[1744306549178,1.33352,1500.8,1500.7,5.2537]
[1744306549493,7.77802,1500.8,1500.7,5.2537]
[1744306549793,6.4445,1500.8,1500.7,6.58731]
[1744306549985,7.77802,1500.8,1500.7,5.2537]
[1744306550187,7.77802,1500.8,1500.7,6.58731]
[1744306550383,6.4445,1500.8,1500.7,6.58731]
[1744306550588,1.33361,1500.7,1500.6,0.00997539]
[1744306551090,4.54141,1500.7,1500.6,0.00997539]
[1744306551986,1.33428,1500.0,1499.6,12.53625]
[1744306552183,6.54297,1500.2,1499.8,6.48336]
[1744306552492,1.33431,1500.0,1499.8,6.48336]
[1744306552788,1.33416,1500.1,1499.8,5.149]
[1744306552991,1.33416,1500.1,1499.9,7.76344]
[1744306553181,1.34418539,1500.1,1499.9,7.76344]
[1744306553387,0.00997539,1500.1,1500.0,1.33424]
[1744306553583,0.00997539,1500.1,1500.0,7.76344]
[1744306554395,0.00997539,1500.1,1500.0,10.97124]
[1744306555695,0.00997539,1500.1,1500.0,15.97124]
[1744306556591,0.00997539,1500.1,1500.0,7.76344]
[1744306556786,1.34412539,1500.1,1500.0,7.76344]
[1744306556995,0.00997539,1500.1,1500.0,7.76344]
[1744306557887,1.34412539,1500.1,1500.0,7.76344]
[1744306558087,0.00997539,1500.1,1500.0,7.76344]
[1744306558296,0.00997539,1500.1,1500.0,10.97124]
[1744306558591,0.00997539,1500.1,1500.0,7.76344]
[1744306558794,1.34412539,1500.1,1500.0,7.76344]
[1744306559499,0.00997539,1500.1,1500.0,7.76344]
[1744306559692,1.34412539,1500.1,1500.0,7.76344]
[1744306559893,0.00997539,1500.1,1500.0,7.76344]
[1744306560487,0.00997539,1500.1,1499.8,5.149]
[1744306560792,1.33459,1499.6,1499.4,3.2078]
[1744306561000,14.52964,1499.9,1499.4,6.54457]
[1744306561192,11.1938,1499.9,1499.8,1.33441]
[1744306561399,1.33456,1499.7,1499.6,1.33455]
[1744306561702,6.3889,1499.8,1499.7,1.3345]
[1744306562399,6.3889,1499.8,1499.7,7.4857]
[1744306562595,7.72331,1499.8,1499.7,7.4857]
[1744306562792,1.33459,1499.6,1499.5,1.33464]
[1744306562994,6.3889,1499.8,1499.4,9.4881]
[1744306563199,7.72333,1499.8,1499.7,1.3345]
[1744306563897,4.54213,1499.9,1499.8,1.33441]
[1744306564199,3.2078,1499.9,1499.8,1.33441]
[1744306564402,6.5208,1500.0,1499.9,1.33432]
[1744306564598,7.85504,1500.0,1499.9,1.33432]
[1744306565090,6.5208,1500.0,1499.9,1.33432]
[1744306565292,1.33424,1500.0,1499.9,7.90035]
[1744306565493,1.33432,1499.9,1499.8,5.0121]
[1744306565792,1.33438,1499.9,1499.8,1.33436]
[1744306565987,5.15964342,1500.1,1499.9,1.33426]
[1744306566187,1.3344,1499.9,1499.8,1.33437]
[1744306566392,6.5208,1500.0,1499.9,1.33432]
[1744306566996,6.49379342,1500.1,1500.0,1.33424]
[1744306567301,5.15964342,1500.1,1500.0,1.33424]
[1744306567501,10.30570065,1500.4,1500.0,8.2078]
[1744306567702,10.30570065,1500.4,1500.3,4.54177]